bitfinex-derivatives/quotes_BNBF0:USTF0_20250509
["timestamp","ask_amount","ask_price","bid_price","bid_amount"]
[1746779436160,0.28818434,638.46,637.41,0.469]
[1746779436366,0.28818434,638.47,637.41,0.469]
[1746779438868,0.613,638.48,637.41,0.469]
[1746779440469,0.28806589,638.47,637.41,0.469]
[1746779440768,0.613,638.48,637.41,0.469]
[1746779445077,0.28802583,638.47,637.41,0.469]
[1746779445377,0.613,638.48,637.41,0.469]
[1746779447378,0.28803063,638.47,637.41,0.469]
[1746779448378,0.613,638.48,637.41,0.469]
[1746779449876,0.28808386,638.47,637.41,0.469]
[1746779453576,0.28808386,638.56,637.41,0.469]
[1746779454480,0.27276147,638.57,637.41,0.469]
[1746779454880,0.28810762,638.56,637.41,0.469]
[1746779456482,0.552,638.55,637.41,0.469]
[1746779456981,0.28810762,638.54,637.41,0.469]
[1746779462980,0.552,638.55,637.41,0.469]
[1746779466383,0.552,638.55,637.41,0.869]
[1746779466683,0.552,638.55,637.42,0.27152999]
[1746779467288,0.552,638.55,637.41,0.4]
[1746779468287,0.552,638.55,637.42,0.27151374]
[1746779469989,0.552,638.55,637.42,0.60351374]
[1746779470391,0.552,638.55,637.42,0.332]
[1746779475493,0.27264287,639.08,637.42,0.332]
[1746779475789,0.28792078,639.07,637.42,0.332]
[1746779476195,0.28792078,639.07,637.43,0.27172172]
[1746779478000,0.28792078,639.07,637.42,0.332]
[1746779478700,0.64792078,639.07,637.42,0.332]
[1746779479001,0.28792078,639.06,637.42,0.332]
[1746779479504,0.36,639.07,637.42,0.332]
[1746779479900,0.28790651,639.06,637.42,0.332]
[1746779481499,0.36,639.07,637.42,0.332]
[1746779482092,0.2877794,639.06,637.43,0.27150608]
[1746779482595,0.36,639.07,637.42,0.332]
[1746779482799,0.28776844,639.05,637.44,0.27155475]
[1746779483096,0.28776844,639.06,637.43,0.27155475]
[1746779483301,0.28776844,639.06,637.45,0.336]
[1746779483697,0.28776844,639.06,637.46,0.27155475]
[1746779484397,0.36,639.07,637.46,0.27155475]
[1746779495712,0.36,639.07,637.45,0.60841771]
[1746779495911,0.36,639.07,637.46,0.27099122]
[1746779497811,0.36,639.07,637.47,0.27099122]
[1746779498010,0.36,639.07,637.48,0.27099122]
[1746779498408,0.36,639.07,637.49,0.27099122]
[1746779498611,0.36,639.07,637.5,0.27099122]
[1746779498915,0.36,639.07,637.51,0.27099122]
[1746779499216,0.36,639.07,637.52,0.27099122]
[1746779499811,0.36,639.07,637.53,0.27099122]
[1746779500314,0.36,639.07,637.54,0.27099122]
[1746779500812,0.36,639.07,637.55,0.27099122]
[1746779501011,0.36,639.07,637.56,0.27099122]
[1746779501316,0.36,639.07,637.57,0.27099122]
[1746779501613,0.36,639.07,637.58,0.27099122]
[1746779502113,0.36,639.07,637.46,0.27237506]
[1746779502114,0.36,639.07,637.59,0.27099122]
[1746779502317,0.36,639.07,637.6,0.27099122]
[1746779502718,0.36,639.07,637.47,0.27099122]
[1746779502919,0.36,639.07,637.61,0.414]
[1746779503219,0.36,639.07,637.62,0.27099122]
[1746779503924,0.36,639.07,637.61,0.414]
[1746779504227,0.36,639.07,637.62,0.2708874]
[1746779510721,0.36,639.07,637.61,0.414]
[1746779511027,0.36,639.07,637.62,0.27116584]
[1746779517131,0.36,639.07,637.63,0.327]
[1746779517630,0.36,639.07,637.65,0.31365168]
[1746779518028,0.36,639.07,637.66,0.27116584]
[1746779518327,0.36,639.07,637.65,0.31365168]
[1746779518632,0.36,639.07,637.66,0.27103614]
[1746779520632,0.28775228,639.06,637.66,0.27103614]
[1746779521330,0.28775228,639.65,637.66,0.27103614]
[1746779521735,0.28775228,639.64,637.66,0.27103614]
[1746779522038,0.28775228,639.65,637.65,0.31365168]
[1746779522435,2.06969776,640.2,637.65,0.31365168]
[1746779522635,0.27241557,639.64,637.65,0.31365168]
[1746779522937,0.28775228,639.63,637.65,0.31365168]
[1746779523339,0.373,639.62,637.65,0.31365168]
[1746779523637,0.28775228,639.61,637.66,0.27109818]
[1746779525338,0.28775228,639.6,637.66,0.27109818]
[1746779525543,0.28775228,639.59,637.67,0.27109818]
[1746779525839,0.28775228,639.61,637.66,0.27109818]
[1746779526637,0.373,639.62,637.66,0.27109818]
[1746779528139,0.28761385,639.61,637.66,0.27109818]
[1746779528539,0.27238572,639.6,637.66,0.27109818]
[1746779528838,0.28761385,639.59,637.66,0.27109818]
[1746779530043,0.28761385,639.61,637.66,0.27109818]
[1746779531246,0.373,639.62,637.66,0.27109818]
[1746779533146,0.28756421,639.61,637.67,0.27109818]
[1746779533548,0.28756421,639.61,637.66,0.27109818]
[1746779536846,0.373,639.62,637.66,0.27109818]
[1746779538450,0.28762389,639.61,637.66,0.27109818]
[1746779539951,0.56001388,639.61,637.66,0.27109818]
[1746779540148,0.28762389,639.6,637.66,0.27109818]
[1746779540946,0.28762389,639.61,637.66,0.65609818]
[1746779541151,0.28762389,639.61,637.67,0.27109818]
[1746779542154,0.28762389,639.61,637.68,0.27109818]
[1746779542654,0.28762389,639.61,637.67,0.27109818]
[1746779544970,0.28762389,639.61,637.69,0.31363201]
[1746779545356,0.28762389,639.61,637.7,0.27109818]
[1746779545555,0.28762389,639.61,637.72,0.31361726]
[1746779545959,0.28762389,639.61,637.73,0.27109818]
[1746779547358,0.28762389,639.61,637.75,0.3136025]
[1746779547855,0.373,639.62,637.75,0.3136025]
[1746779548461,0.28766993,639.61,637.76,0.27131166]
[1746779549159,0.28766993,639.61,637.78,0.31358775]
[1746779549558,0.27239212,639.6,637.79,0.27131166]
[1746779549757,0.28766993,639.59,637.79,0.27131166]
[1746779551355,0.28766993,639.58,637.81,0.313573]
[1746779551755,0.28766993,639.57,637.82,0.27131166]
[1746779552063,0.28766993,639.59,637.81,0.313573]
[1746779553161,0.375,639.58,637.81,0.313573]
[1746779553462,0.28766993,639.57,637.81,0.313573]
[1746779557464,0.28766993,639.57,637.82,0.27138453]
[1746779558565,0.27240918,639.56,637.82,0.27138453]
[1746779558964,0.27240918,639.56,637.81,0.313573]
[1746779559460,0.28769641,639.55,637.82,0.27138577]
[1746779563562,0.27238999,639.56,637.81,0.313573]
[1746779564060,0.375,639.58,637.81,0.313573]
[1746779566563,0.375,639.58,637.82,0.27129306]
[1746779566770,0.28759291,639.57,637.82,0.27129306]
[1746779566970,0.375,639.58,637.82,0.27129306]
[1746779567671,0.28758896,639.57,637.82,0.27129306]
[1746779568370,0.375,639.58,637.82,0.27129306]
[1746779571372,0.375,639.58,637.81,0.313573]
[1746779571775,0.28752632,639.57,637.82,0.27122929]
[1746779572274,0.375,639.58,637.82,0.27122929]
[1746779574280,0.375,639.58,637.81,0.313573]
[1746779574680,0.375,639.58,637.82,0.27115688]
[1746779577282,0.28757808,639.57,637.82,0.27115688]
[1746779579588,0.28757808,639.57,637.83,0.313]
[1746779579788,0.28757808,639.73,637.84,0.27115688]
[1746779581389,0.28757808,639.72,637.84,0.27115688]
[1746779581691,0.28757808,639.73,637.84,0.27115688]
[1746779582190,0.33,639.72,637.84,0.27115688]
[1746779582386,0.28757808,639.71,637.84,0.27115688]
[1746779585093,0.28757808,639.7,637.84,0.27115688]
[1746779585292,0.60237293,639.72,637.84,0.27115688]
[1746779585293,0.28757808,639.71,637.84,0.27115688]
[1746779585592,0.60237293,639.72,637.83,0.313]
[1746779586293,0.28762163,639.71,637.84,0.2712139]
[1746779588594,0.2723772,639.7,637.84,0.2712139]
[1746779588894,0.28762163,639.69,637.84,0.2712139]
[1746779589595,0.2723772,639.7,637.83,0.5853772]
[1746779590396,0.28759656,639.69,637.84,0.27117366]
[1746779595501,0.2723772,639.7,637.85,0.325]
[1746779595902,0.28759087,639.69,637.86,0.27116862]
[1746779597605,0.27236014,639.68,637.86,0.27116862]
[1746779598005,0.28759087,639.67,637.86,0.27116862]
[1746779600609,0.27236227,639.66,637.86,0.27116862]
[1746779600805,0.28759087,639.65,637.86,0.27116862]
[1746779601507,0.27236227,639.66,637.86,0.27116862]
[1746779602909,0.28767538,639.65,637.86,0.27116862]
[1746779603812,0.8887813,641.35,637.86,0.27116862]
[1746779604009,1.20062837,641.34,637.86,0.27116862]
[1746779604310,0.31184707,641.34,637.85,0.325]
[1746779604611,0.27221101,641.33,637.85,0.59721101]
[1746779604810,1.16117929,641.33,637.85,0.59721101]
[1746779605110,0.88896828,641.32,637.86,0.27181285]
[1746779605409,0.88896828,641.31,637.86,0.27181285]
[1746779605611,0.27221101,641.33,637.86,0.27181285]
[1746779605612,2.06969776,640.74,637.86,0.27181285]
[1746779605910,0.88896828,640.73,637.86,0.27181285]
[1746779606212,0.299,640.72,637.86,0.27181285]
[1746779606507,0.58668095,640.72,637.86,0.27181285]
[1746779606711,0.28768095,640.71,637.86,0.27181285]
[1746779606906,0.28768095,640.7,637.86,0.27181285]
[1746779607406,0.299,640.72,637.86,0.27181285]
[1746779607407,0.28768095,640.69,637.86,0.27181285]
[1746779607813,2.06969776,640.65,637.86,0.27181285]
[1746779608013,0.88896828,640.64,637.99,0.31348453]
[1746779608411,0.28768095,640.63,637.99,0.31348453]
[1746779608710,0.28768095,640.62,637.99,0.31348453]
[1746779609111,0.28768095,640.61,637.99,0.31348453]
[1746779609613,0.55996224,640.6,637.99,0.31348453]
[1746779609810,0.28768095,640.59,637.99,0.31348453]
[1746779610513,0.28768095,640.58,637.99,0.31348453]
[1746779611014,0.28768095,640.57,637.99,0.31348453]
[1746779611209,0.28768095,640.57,638.0,0.312]
[1746779611411,0.28768095,640.56,638.0,0.312]
[1746779611714,2.06969776,640.53,638.0,0.312]
[1746779612114,0.88896828,640.52,638.01,0.27179458]
[1746779612313,0.28768095,640.51,638.01,0.27179458]
[1746779612615,0.28768095,640.5,638.01,0.27179458]
[1746779613109,2.06969776,640.43,638.01,0.27179458]
[1746779613514,0.88896828,640.42,638.01,0.27179458]
[1746779613814,2.06969776,640.43,638.0,0.312]
[1746779614215,0.8887372,640.42,638.01,0.27165716]
[1746779614614,0.28760427,640.41,638.01,0.27165716]
[1746779614916,0.28760427,640.4,638.02,0.386]
[1746779615413,0.28760427,640.39,638.03,0.27165716]
[1746779615614,0.55983445,640.39,638.03,0.27165716]
[1746779615814,0.28760427,640.38,638.03,0.27165716]
[1746779616012,0.28760427,640.37,638.03,0.27165716]
[1746779616414,0.28760427,640.36,638.03,0.27165716]
[1746779616710,0.28760427,640.35,638.03,0.27165716]
[1746779617009,0.28760427,640.38,638.03,0.27165716]
[1746779617314,0.28760427,640.37,638.03,0.27165716]
[1746779617609,0.28760427,640.36,638.03,0.27165716]
[1746779618015,0.28760427,640.35,638.03,0.27165716]
[1746779618315,0.28760427,640.34,638.03,0.27165716]
[1746779618711,0.28760427,640.33,638.03,0.27165716]
[1746779619110,0.28760427,640.32,638.03,0.27165716]
[1746779619514,0.28760427,640.31,638.03,0.27165716]
[1746779619915,0.28760427,640.3,638.03,0.27165716]
[1746779620414,0.28760427,640.29,638.03,0.27165716]
[1746779621010,0.28760427,640.28,638.03,0.27165716]
[1746779621413,0.28760427,640.27,638.03,0.27165716]
[1746779621713,0.28760427,640.38,638.03,0.27165716]
[1746779622010,0.27223018,640.39,638.02,0.386]
[1746779622416,0.28745631,640.38,638.03,0.27125272]
[1746779622716,0.28745631,640.37,638.03,0.27125272]
[1746779623115,0.28745631,640.38,638.03,0.27125272]
[1746779623516,0.28745631,640.37,638.03,0.27125272]
[1746779623812,0.28745631,640.38,638.03,0.27125272]
[1746779624613,0.27219611,640.37,638.03,0.27125272]
[1746779625115,0.28745631,640.36,638.03,0.66825272]
[1746779625512,0.28745631,640.36,638.04,0.27125272]
[1746779628122,0.328,640.35,638.04,0.27125272]
[1746779628521,0.28745631,640.34,638.04,0.27125272]
[1746779633624,0.27218865,640.33,638.04,0.27125272]
[1746779634319,0.28745631,640.32,638.04,0.27125272]
[1746779635423,0.28745631,640.32,638.15,0.31340593]
[1746779635927,0.28745631,640.32,638.16,0.27125272]
[1746779639624,0.27215885,640.31,638.16,0.27125272]
[1746779640028,0.28745631,640.3,638.16,0.27125272]
[1746779640827,0.28745631,640.3,638.16,0.57825272]
[1746779641030,0.28745631,640.3,638.17,0.27125272]
[1746779642430,0.28745631,640.29,638.17,0.27125272]
[1746779642934,0.28745631,640.28,638.17,0.27125272]
[1746779643232,0.28745631,640.3,638.17,0.27125272]
[1746779645633,0.27216843,640.29,638.17,0.27125272]
[1746779646232,0.28745631,640.28,638.17,0.27125272]
[1746779646833,0.27216843,640.29,638.16,0.307]
[1746779647234,0.28743277,640.28,638.17,0.27131158]
[1746779651637,0.27215353,640.27,638.17,0.27131158]
[1746779651938,0.28743277,640.26,638.17,0.27131158]
[1746779654737,0.27215566,640.25,638.17,0.27131158]
[1746779655437,0.28743277,640.24,638.17,0.27131158]
[1746779657841,0.27212374,640.29,638.17,0.27131158]
[1746779658041,0.28743277,640.28,638.17,0.27131158]
[1746779658239,0.60243277,640.28,638.17,0.27131158]
[1746779658441,0.28743277,640.27,638.17,0.27131158]
[1746779661349,0.315,640.28,638.16,0.57912374]
[1746779661647,0.28737206,640.27,638.17,0.271358]
[1746779662148,0.315,640.28,638.17,0.271358]
[1746779664948,0.28733854,640.27,638.17,0.271358]
[1746779665343,0.28733854,640.27,638.17,0.676358]
[1746779665752,0.28733854,640.27,638.18,0.271358]
[1746779666650,0.27213225,640.26,638.18,0.271358]
[1746779666944,0.28733854,640.25,638.18,0.271358]
[1746779668554,0.27213225,640.26,638.17,0.67713225]
[1746779668949,0.28737759,640.25,638.18,0.27134726]
[1746779669548,0.315,640.28,638.18,0.27134726]
[1746779669549,0.28737759,640.27,638.18,0.27134726]
[1746779669749,0.27213863,640.24,638.18,0.27134726]
[1746779670350,0.28737759,640.23,638.18,0.27134726]
[1746779672451,0.315,640.28,638.17,0.405]
[1746779672651,0.27213863,640.22,638.17,0.67713863]
[1746779673354,0.28738181,640.21,638.18,0.27132951]
[1746779674454,0.28738181,640.27,638.18,0.27132951]
[1746779674657,0.27212587,640.31,638.17,0.67713863]
[1746779675360,2.06969776,641.59,638.17,0.405]
[1746779675659,0.88791738,641.58,638.18,0.27109199]
[1746779676162,0.27197061,640.34,638.18,0.27109199]
[1746779676461,0.60058529,641.58,638.18,0.27109199]
[1746779676462,0.28733209,640.33,638.18,0.27109199]
[1746779676859,0.88791738,641.35,638.18,0.27109199]
[1746779677160,0.28733209,641.34,638.18,0.27109199]
[1746779677662,0.27197805,641.33,638.18,0.27109199]
[1746779678060,1.15989543,641.33,638.19,0.27109199]
[1746779678262,1.60789543,641.33,638.19,0.27109199]
[1746779678561,0.88791738,641.32,638.2,0.27109199]
[1746779678754,0.28733209,641.32,638.2,0.27109199]
[1746779678958,0.28733209,641.31,638.18,0.27109199]
[1746779679261,2.06969776,641.02,638.4,1.00675414]
[1746779679756,0.88791738,641.01,638.41,0.27109199]
[1746779680163,0.88791738,641.01,638.4,1.00675414]
[1746779680862,0.28733209,641.0,638.41,0.27103648]
[1746779681162,0.28733209,640.99,638.41,0.27103648]
[1746779681662,0.28733209,640.98,638.41,0.27103648]
[1746779681869,0.55932821,640.98,638.41,0.27103648]
[1746779682063,0.28733209,640.97,638.41,0.468]
[1746779682463,0.28733209,640.96,638.42,0.27103648]
[1746779682658,0.28733209,640.95,638.42,0.27103648]
[1746779682962,0.28733209,640.94,638.42,0.27103648]
[1746779683464,0.28733209,640.93,638.42,0.27103648]
[1746779684058,0.28733209,640.92,638.42,0.27103648]
[1746779684365,0.28733209,640.91,638.42,0.27103648]
[1746779684764,0.28733209,640.9,638.42,0.27103648]
[1746779685164,0.28733209,640.89,638.42,0.27103648]
[1746779685464,0.28733209,640.88,638.42,0.27103648]
[1746779685866,0.28733209,640.87,638.42,0.27103648]
[1746779686361,0.28733209,640.86,638.42,0.27103648]
[1746779686960,0.28733209,640.85,638.42,0.27103648]
[1746779687667,0.55935054,640.84,638.42,0.27103648]
[1746779688569,0.28733209,640.83,638.42,0.27103648]
[1746779688864,0.28733209,640.82,638.42,0.27103648]
[1746779689168,0.28733209,640.81,638.42,0.27103648]
[1746779689465,0.28733209,640.8,638.42,0.27103648]
[1746779689870,0.28733209,640.79,638.42,0.27103648]
[1746779690168,0.28733209,640.83,638.42,0.27103648]
[1746779692070,0.28733209,640.83,638.42,0.73603648]
[1746779692468,0.28733209,640.83,638.43,0.27103648]
[1746779693669,0.27203546,640.82,638.43,0.27103648]
[1746779694371,0.28733209,640.81,638.43,0.27103648]
[1746779695669,0.28733209,640.8,638.43,0.27103648]
[1746779695970,0.28733209,640.79,638.43,0.27103648]
[1746779696170,0.27203546,640.82,638.42,0.465]
[1746779696569,0.27203546,640.82,638.43,0.2712915]
[1746779696769,0.28739435,640.81,638.43,0.2712915]
[1746779697271,0.452,640.8,638.43,0.2712915]
[1746779697570,0.28739435,640.79,638.42,0.465]
[1746779698771,0.452,640.8,638.42,0.465]
[1746779699971,0.28735168,640.79,638.42,0.465]
[1746779700471,0.28735168,640.78,638.43,0.27118585]
[1746779700766,0.28735168,640.79,638.43,0.27118585]
[1746779702673,0.27204609,640.78,638.43,0.27118585]
[1746779703373,0.28735168,640.77,638.43,0.27118585]
[1746779704275,0.28735168,640.76,638.43,0.27118585]
[1746779704772,0.27204609,640.78,638.43,0.27118585]
[1746779704773,0.28735168,640.75,638.43,0.27118585]
[1746779705173,0.28735168,640.74,638.43,0.27118585]
[1746779705570,0.28735168,640.73,638.43,0.27118585]
[1746779705767,0.55942329,640.73,638.43,0.27118585]
[1746779705974,0.28735168,640.72,638.43,0.27118585]
[1746779706272,0.28735168,640.71,638.43,0.27118585]
[1746779706973,0.28735168,640.7,638.43,0.27118585]
[1746779707376,0.28735168,640.69,638.43,0.27118585]
[1746779707676,0.28735168,640.68,638.43,0.27118585]
[1746779707970,0.28735168,640.67,638.43,0.27118585]
[1746779708572,0.28735168,640.66,638.43,0.27118585]
[1746779708769,0.28735168,640.65,638.43,0.27118585]
[1746779709169,0.28735168,640.64,638.43,0.27118585]
[1746779709673,0.28735168,640.63,638.54,0.31321452]
[1746779709973,0.28735168,640.62,638.55,0.27118585]
[1746779710673,0.28735168,640.61,638.55,0.27118585]
[1746779711176,0.28735168,640.6,638.55,0.27118585]
[1746779711576,0.28735168,640.59,638.55,0.27118585]
[1746779711877,0.28735168,640.58,638.55,0.27118585]
[1746779712277,0.28735168,640.57,638.55,0.27118585]
[1746779712577,0.28735168,640.65,638.55,0.27118585]
[1746779712776,0.27206842,640.66,638.54,0.31321452]
[1746779713178,0.28726529,640.65,638.55,0.27105037]
[1746779717876,0.28726529,640.64,638.55,0.27105037]
[1746779718082,0.28726529,640.64,638.55,0.72405037]
[1746779718482,0.28726529,640.63,638.56,0.27105037]
[1746779718883,0.28726529,640.65,638.56,0.27105037]
[1746779721586,0.28726529,640.65,638.56,0.71705037]
[1746779722187,0.28726529,640.65,638.57,0.27105037]
[1746779722783,0.71626529,640.64,638.57,0.27105037]
[1746779723386,0.28726529,640.63,638.57,0.27105037]
[1746779723686,0.28726529,640.62,638.57,0.27105037]
[1746779724088,0.28726529,640.61,638.57,0.27105037]
[1746779724385,0.429,640.64,638.57,0.27105037]
[1746779724386,0.28726529,640.6,638.57,0.27105037]
[1746779724789,0.28726529,640.59,638.57,0.27105037]
[1746779725089,0.55928161,640.59,638.57,0.27105037]
[1746779725284,0.28726529,640.58,638.57,0.27105037]
[1746779728387,0.28726529,640.57,638.57,0.27105037]
[1746779728790,0.28726529,640.56,638.57,0.27105037]
[1746779729293,0.28726529,640.55,638.57,0.27105037]
[1746779729591,0.28726529,640.58,638.57,0.27105037]
[1746779729889,0.28726529,640.57,638.57,0.27105037]
[1746779730285,0.28726529,640.58,638.57,0.27105037]
[1746779730493,0.28726529,640.57,638.57,0.27105037]
[1746779730891,0.28726529,640.58,638.57,0.27105037]
[1746779732093,0.28726529,640.57,638.57,0.27105037]
[1746779732387,0.28726529,640.58,638.57,0.27105037]
[1746779732994,0.27201632,640.59,638.56,0.446]
[1746779733393,0.2872958,640.58,638.57,0.27069084]
[1746779735895,0.27201632,640.59,638.56,0.446]
[1746779736196,0.2873126,640.58,638.56,0.446]
[1746779740797,0.2873126,640.58,638.57,0.27070517]
[1746779741794,0.27203014,640.57,638.57,0.27070517]
[1746779742199,0.2873126,640.56,638.57,0.27070517]
[1746779744002,0.2873126,640.56,638.59,0.31318999]
[1746779744499,0.2873126,640.56,638.6,0.27070517]
[1746779744700,0.27202695,640.55,638.6,0.27070517]
[1746779745101,0.2873126,640.54,638.6,0.27070517]
[1746779746705,0.2873126,640.54,638.61,0.344]
[1746779747101,0.2873126,640.54,638.62,0.27070517]
[1746779747599,0.27202695,640.55,638.62,0.27070517]
[1746779747903,0.27202695,640.55,638.61,0.344]
[1746779748103,0.28730155,640.54,638.63,0.27063604]
[1746779748399,0.28730155,640.54,638.62,0.27063604]
[1746779748906,0.28730155,640.54,638.64,0.31316547]
[1746779749406,0.28730155,640.54,638.65,0.27063604]
[1746779750407,0.28730155,640.54,638.67,0.31315076]
[1746779750608,0.565,640.53,638.67,0.31315076]
[1746779750808,0.28730155,640.52,638.67,0.31315076]
[1746779751009,0.28730155,640.52,638.68,0.27063604]
[1746779753506,0.565,640.53,638.67,0.31315076]
[1746779753910,0.28729648,640.52,638.68,0.27072747]
[1746779756616,0.28729648,640.52,638.68,0.56472747]
[1746779756815,0.27200782,640.51,638.68,0.56472747]
[1746779757515,0.28729648,640.5,638.69,0.27072747]
[1746779759710,0.27201738,640.49,638.69,0.27072747]
[1746779760013,0.28729648,640.48,638.69,0.27072747]
[1746779762715,0.28729648,640.52,638.69,0.27072747]
[1746779765017,0.28729648,640.59,638.69,0.27072747]
[1746779765917,0.27195255,640.66,638.69,0.27072747]
[1746779766115,0.60051313,641.4,638.69,0.27072747]
[1746779766520,0.88762774,641.4,638.69,0.27072747]
[1746779767121,2.06969776,641.41,638.68,0.56595255]
[1746779767420,0.27183146,641.39,638.68,0.56595255]
[1746779767620,0.27183146,641.39,638.69,0.27043089]
[1746779767822,0.28711522,641.38,638.69,0.27043089]
[1746779768215,0.28711522,641.37,638.69,0.27043089]
[1746779768420,0.58611522,641.37,638.69,0.27043089]
[1746779768721,0.271875,641.36,638.69,0.27043089]
[1746779769020,0.55899022,641.36,638.7,0.3]
[1746779769515,0.28711522,641.35,638.7,0.3]
[1746779769720,0.28711522,641.35,638.71,0.27043089]
[1746779771024,0.28711522,641.34,638.71,0.27043089]
[1746779771518,0.28711522,641.33,638.71,0.27043089]
[1746779771824,0.28711522,641.32,638.71,0.27043089]
[1746779772225,0.28711522,641.35,638.71,0.27043089]
[1746779773826,0.28711522,641.34,638.71,0.27043089]
[1746779774322,0.28711522,641.33,638.71,0.27043089]
[1746779774825,0.28711522,641.32,638.71,0.27043089]
[1746779775126,0.28711522,641.35,638.71,0.27043089]
[1746779775725,0.271875,641.36,638.7,0.3]
[1746779776329,0.28706505,641.35,638.71,0.27013062]
[1746779779424,0.28706505,641.35,638.7,0.3]
[1746779779425,0.28706505,641.34,638.72,0.27013062]
[1746779779829,0.28706505,641.35,638.71,0.27013062]
[1746779780525,0.28706505,641.35,638.69,0.27013062]
[1746779781631,0.271875,641.36,638.68,0.565875]
[1746779781933,0.28696263,641.35,638.69,0.26977601]
[1746779782129,0.28696263,641.34,638.7,0.26977601]
[1746779782430,0.28696263,641.35,638.83,0.31307233]
[1746779782631,0.28696263,641.35,638.84,0.26977601]
[1746779783432,0.299,641.37,638.83,0.31307233]
[1746779783732,0.299,641.37,638.84,0.2696648]
[1746779783733,0.28688276,641.36,638.84,0.2696648]
[1746779784732,0.28688276,641.36,638.83,0.31307233]
[1746779784733,0.28688276,641.36,638.85,0.2696648]
[1746779785127,0.28688276,641.36,638.86,0.2696648]
[1746779785534,0.28688276,641.36,638.87,0.2696648]
[1746779785931,0.28688276,641.36,638.88,0.2696648]
[1746779786132,0.28688276,641.36,638.89,0.2696648]
[1746779786632,0.28688276,641.36,638.9,0.2696648]
[1746779786936,0.28688276,641.36,638.91,0.2696648]
[1746779787236,0.28688276,641.36,638.92,0.2696648]
[1746779787637,0.28688276,641.36,638.93,0.2696648]
[1746779788134,0.28688276,641.36,638.94,0.2696648]
[1746779788333,0.28688276,641.36,638.95,0.2696648]
[1746779788837,0.299,641.37,638.96,0.2696648]
[1746779789237,0.299,641.37,638.97,0.2696648]
[1746779789439,0.59968014,643.12,638.98,0.2696648]
[1746779789840,2.06969776,643.13,638.83,0.31307233]
[1746779790040,0.5992067,643.12,638.84,0.26894162]
[1746779790239,0.88585442,643.12,638.84,0.26894162]
[1746779790432,0.27137677,643.11,638.84,0.26894162]
[1746779790735,0.28664772,643.1,638.85,0.2596897]
[1746779791337,0.28664772,643.09,638.83,0.31307233]
[1746779791840,0.28664772,643.08,638.84,0.26906191]
[1746779792340,0.88585442,643.07,638.85,0.26906191]
[1746779792841,0.88585442,643.06,638.86,0.26906191]
[1746779793038,0.88585442,643.05,638.87,0.26906191]
[1746779793239,0.28664772,643.04,638.88,0.26906191]
[1746779793434,0.88585442,643.04,638.88,0.26906191]
[1746779793842,1.19688189,643.03,638.89,0.26906191]
[1746779794139,0.88585442,643.02,638.9,0.26906191]
[1746779794340,0.88585442,643.01,638.91,0.26906191]
[1746779794738,0.88585442,643.0,638.92,0.26906191]
[1746779795141,0.88585442,642.99,638.93,0.26906191]
[1746779795538,2.06969776,642.88,638.94,0.26906191]
[1746779795943,0.88585442,642.87,638.95,0.26906191]
[1746779796345,0.88585442,642.86,638.96,0.26906191]
[1746779796743,0.88585442,642.85,638.97,0.26906191]
[1746779797043,0.88585442,642.84,638.98,0.26906191]
[1746779797344,0.88585442,642.83,638.84,0.26906191]
[1746779797742,0.88585442,642.82,638.84,0.26906191]
[1746779798143,0.88585442,642.81,638.84,0.26906191]
[1746779798443,0.88585442,642.8,638.84,0.26906191]
[1746779798645,0.5992067,642.8,638.84,0.26906191]
[1746779798847,0.27157266,642.8,638.83,0.31307233]
[1746779799147,0.88674669,642.79,638.84,0.26971513]
[1746779799347,0.88674669,642.78,638.85,0.26971513]
[1746779799642,0.88674669,642.78,638.85,0.66071513]
[1746779799846,0.88674669,642.77,638.86,0.26971513]
[1746779800348,0.88674669,642.76,638.87,0.26971513]
[1746779800648,0.88674669,642.75,638.86,0.26971513]
[1746779800947,0.88674669,642.74,638.86,0.26971513]
[1746779801346,0.88674669,642.73,638.86,0.26971513]
[1746779801851,0.88674669,642.72,638.86,0.26971513]
[1746779802047,0.88674669,642.71,638.86,0.26971513]
[1746779802444,0.88674669,642.7,638.86,0.26971513]
[1746779802651,0.27161612,642.73,638.85,0.391]
[1746779802954,0.88696845,642.72,638.86,0.26934748]
[1746779803249,0.88696845,642.71,638.86,0.26934748]
[1746779803650,0.88696845,642.7,638.86,0.26934748]
[1746779803950,0.88696845,642.69,638.86,0.26934748]
[1746779804453,0.88696845,642.68,638.86,0.26934748]
[1746779804753,0.28701651,642.67,638.86,0.26934748]
[1746779804952,0.88696845,642.67,638.86,0.26934748]
[1746779805149,0.88696845,642.66,638.86,0.26934748]
[1746779805449,0.59995194,642.65,639.05,0.31296455]
[1746779805654,0.88696845,642.65,639.05,0.31296455]
[1746779805954,0.88696845,642.64,639.06,0.26934748]
[1746779806253,0.88696845,642.63,639.06,0.26934748]